fUSD/lending_fUSD_20260323
["ID","MTS","AMOUNT","RATE_DAILY","PERIOD"]
[408822719,1774306235924,-500.0,0.00015999,2]
[408822720,1774306235934,-500.0,0.00015999,2]
[408822721,1774306235943,-321.19810832,0.00015999,2]
[408822722,1774306235953,-500.0,0.00015999,2]
[408822723,1774306235963,-500.0,0.00015999,2]
[408822724,1774306235972,-40054.41140012,0.00016,2]
[408822725,1774306235986,-8202.4203,0.00016,2]
[408822726,1774306238153,-500.0,0.00015999,2]
[408822727,1774306238163,-500.0,0.00015999,2]
[408822728,1774306238174,-500.0,0.00015999,2]
[408822729,1774306238184,-228.76612515,0.00015999,2]
[408822730,1774306238227,-271.23387485,0.00015999,2]
[408822731,1774306238238,-500.0,0.00015999,2]
[408822732,1774306238247,-388.17937311,0.00015999,2]
[408822733,1774306238394,-111.82062689,0.00015999,2]
[408822735,1774306238404,-375.07,0.00015999,2]
[408822737,1774306238414,-718366.85612928,0.00016,2]
[408822739,1774306238425,-74596.30322681,0.00016,2]
[408822742,1774306238436,-24389.24633256,0.00016,2]
[408822744,1774306238447,-46557.09205457,0.00016,2]
[408822746,1774306238458,-3239.94984,0.00016,2]
[408822748,1774306238470,-1553.52,0.00016,2]
[408822772,1774306241123,-500.0,0.00014503,2]
[408822773,1774306241132,-251233.72278766,0.00016,2]
[408822774,1774306241174,-537.73597151,0.00016,2]
[408822779,1774306243430,-500.0,0.00014503,2]
[408822780,1774306243442,-500.0,0.00014503,2]
[408822781,1774306243452,-500.0,0.00014503,2]
[408822782,1774306243462,-500.0,0.00014503,2]
[408822783,1774306243471,-500.0,0.00014503,2]
[408822784,1774306243480,-341.13571926,0.00014503,2]
[408822785,1774306243490,-9393.50455668,0.00016,2]
[408822786,1774306243502,-18908.67514547,0.00016,2]
[408822799,1774306246062,-646.0500007,0.00016,2]
[408822800,1774306246245,-17032.46310496,0.00016,2]
[408822801,1774306246255,-8478.14915455,0.00016,2]
[408822803,1774306618228,5683.8,0.00017,60]
[408822804,1774307432058,-523.48447467,0.00014,2]
[408822805,1774307432146,-612.24872388,0.00014,2]
[408822806,1774307432156,-506.0,0.00014,2]
[408822807,1774307432166,-195.0,0.00014232,2]
[408822808,1774307432175,-456.75127612,0.00014232,2]
[408822809,1774307432187,-143.24872388,0.00014232,2]
[408822810,1774307432196,-195.0,0.00014391,2]
[408822811,1774307432206,-199.9604653,0.00014391,2]
[408822812,1774307432215,-600.0,0.00014391,2]
[408822813,1774307432226,-400.0,0.00014464,4]
[408822814,1774307432237,-300.0,0.00014493,2]
[408822815,1774307432247,-1200.0,0.00014493,2]
[408822816,1774307432256,-230.61280248,0.00014494,2]
[408822817,1774307432265,-151.0,0.00014494,2]
[408822818,1774307432275,-151.0,0.00014494,2]
[408822819,1774307432283,-151.0,0.00014494,2]
[408822820,1774307432293,-151.0,0.00014494,2]
[408822821,1774307432302,-151.0,0.00014494,2]
[408822822,1774307432310,-151.0,0.00014494,2]
[408822823,1774307432319,-151.0,0.00014494,2]
[408822824,1774307432328,-151.0,0.00014494,2]
[408822826,1774307432338,-151.0,0.00014494,2]
[408822828,1774307432347,-150.0,0.00014502,2]
[408822830,1774307432357,-500.0,0.00014503,2]
[408822832,1774307432366,-500.0,0.00014503,2]
[408822834,1774307432375,-500.0,0.00014503,2]
[408822836,1774307432384,-500.0,0.00014503,2]
[408822837,1774307432392,-500.0,0.00014503,2]
[408822839,1774307432401,-500.0,0.00014503,2]
[408822841,1774307432410,-500.0,0.00014503,2]
[408822843,1774307432420,-500.0,0.00014503,2]
[408822846,1774307432430,-500.0,0.00014503,2]
[408822848,1774307432439,-500.0,0.00014503,2]
[408822850,1774307432450,-500.0,0.00014503,2]
[408822852,1774307432459,-500.0,0.00014503,2]
[408822853,1774307432468,-500.0,0.00014503,2]
[408822855,1774307432477,-500.0,0.00014503,2]
[408822857,1774307432487,-151.02,0.00014503,2]
[408822859,1774307432497,-500.0,0.00014503,2]
[408822861,1774307432509,-500.0,0.00014503,2]
[408822863,1774307432518,-500.0,0.00014503,2]
[408822866,1774307432529,-500.0,0.00014503,2]
[408822868,1774307432538,-500.0,0.00014503,2]
[408822870,1774307432548,-500.0,0.00014503,2]
[408822872,1774307432557,-500.0,0.00014503,2]
[408822874,1774307432567,-500.0,0.00014503,2]
[408822876,1774307432577,-500.0,0.00014503,2]
[408822877,1774307432586,-500.0,0.00014503,2]
[408822879,1774307432595,-500.0,0.00014503,3]
[408822881,1774307432604,-500.0,0.00014503,4]
[408822883,1774307432613,-500.0,0.00014503,5]
[408822885,1774307432622,-500.0,0.00014503,6]
[408822887,1774307432631,-500.0,0.00014503,7]
[408822889,1774307432640,-500.0,0.00014503,8]
[408822891,1774307432649,-500.0,0.00014503,9]
[408822893,1774307432658,-500.0,0.00014503,10]
[408822895,1774307432668,-151.0,0.00014634,2]
[408822897,1774307432677,-1600.0,0.00015141,2]
[408822899,1774307432686,-500.0,0.0001518,2]
[408822901,1774307432695,-500.0,0.0001518,2]
[408822903,1774307432704,-516.47340423,0.0001518,2]
[408822905,1774307432714,-500.0,0.0001518,2]
[408822907,1774307432723,-500.0,0.0001518,2]
[408822908,1774307432733,-500.0,0.0001518,2]
[408822909,1774307432742,-500.0,0.0001518,2]
[408822910,1774307432752,-500.0,0.0001518,2]
[408822911,1774307432761,-500.0,0.0001518,2]
[408822912,1774307432770,-500.0,0.0001518,2]
[408822913,1774307432779,-500.0,0.0001518,2]
[408822914,1774307432788,-500.0,0.0001518,2]
[408822915,1774307432797,-500.0,0.0001518,2]
[408822916,1774307432807,-500.0,0.0001518,2]
[408822917,1774307432818,-151.0,0.0001518,2]
[408822918,1774307432830,-250.0,0.0001518,2]
[408822919,1774307432839,-335.32119913,0.0001518,2]
[408822920,1774307432849,-2500.0,0.000154,2]
[408822921,1774307432858,-600.0,0.000154,2]
[408822922,1774307432867,-250.0,0.000154,2]
[408822923,1774307432876,-195.0,0.000154,2]
[408822924,1774307432887,-600.0,0.000154,2]
[408822925,1774307432896,-350.0,0.0001541,2]
[408822926,1774307432908,-1700.0,0.000155,5]
[408822927,1774307432917,-350.0,0.00015591,2]
[408822928,1774307432927,-3500.0,0.000156,5]
[408822929,1774307432936,-255.0,0.00015619,2]
[408822930,1774307432945,-5300.0,0.000157,5]
[408822931,1774307432954,-367.6722606,0.000158,2]
[408822932,1774307432964,-713.56614581,0.000158,2]
[408822933,1774307432973,-784.19177715,0.000158,2]
[408822934,1774307432983,-808.02389159,0.000158,2]
[408822935,1774307432993,-352.27475022,0.000158,2]
[408822936,1774307433002,-3499.22706492,0.000158,2]
[408822937,1774307433011,-7000.0,0.000158,5]
[408822938,1774307433021,-3210.49130228,0.000158,2]
[408822939,1774307433030,-164.09495865,0.000158,2]
[408822940,1774307433039,-742.849,0.00015811,2]
[408822941,1774307433049,-352.27475018,0.00015811,2]
[408822942,1774307433059,-3210.49130226,0.00015811,2]
[408822943,1774307433068,-352.27475018,0.00015822,2]
[408822944,1774307433077,-3210.49130226,0.00015822,2]
[408822945,1774307433086,-352.27475018,0.00015833,2]
[408822946,1774307433096,-3210.49130226,0.00015833,2]
[408822947,1774307433106,-159.94774,0.0001584,2]
[408822948,1774307433115,-352.27475018,0.00015844,2]
[408822949,1774307433124,-3210.49130226,0.00015844,2]
[408822950,1774307433136,-352.27475018,0.00015856,2]
[408822951,1774307433149,-3210.49130226,0.00015856,2]
[408822952,1774307433159,-352.27475018,0.00015867,2]
[408822953,1774307433168,-3210.49130226,0.00015867,2]
[408822954,1774307433179,-352.27475018,0.00015878,2]
[408822955,1774307433189,-3210.49130226,0.00015878,2]
[408822956,1774307433199,-352.27475018,0.00015889,2]
[408822957,1774307433208,-3210.49130226,0.00015889,2]
[408822958,1774307433219,-657.28,0.0001589,3]
[408822959,1774307433229,-2000.0,0.0001589,2]
[408822960,1774307433238,-292.86086986,0.00015896,2]
[408822961,1774307433248,-165.36550232,0.00015896,2]
[408822962,1774307433258,-259.96323366,0.00015896,2]
[408822963,1774307433268,-486.89062689,0.00015899,2]
[408822964,1774307433276,-203.8,0.00015899,2]
[408822965,1774307433285,-500.0,0.00015899,2]
[408822966,1774307433294,-500.0,0.00015899,2]
[408822967,1774307433303,-500.0,0.00015899,2]
[408822968,1774307433312,-500.0,0.00015899,2]
[408822969,1774307433321,-500.0,0.00015899,2]
[408822970,1774307433331,-189.92285624,0.00015899,2]
[408822971,1774307433344,-310.07714376,0.00015899,2]
[408822972,1774307433353,-500.0,0.00015899,2]
[408822973,1774307433362,-500.0,0.00015899,2]
[408822974,1774307433371,-500.0,0.00015899,2]
[408822975,1774307433380,-500.0,0.00015899,2]
[408822976,1774307433390,-500.0,0.00015899,2]
[408822977,1774307433399,-500.0,0.00015899,2]
[408822978,1774307433409,-543.33893465,0.00015899,2]
[408822979,1774307433420,-500.0,0.00015899,2]
[408822980,1774307433432,-500.0,0.00015899,2]
[408822981,1774307433443,-500.0,0.00015899,2]
[408822982,1774307433452,-500.0,0.00015899,2]
[408822983,1774307433462,-500.0,0.00015899,2]
[408822984,1774307433471,-500.0,0.00015899,2]
[408822985,1774307433480,-411.54747235,0.00015899,2]
[408822986,1774307433489,-500.0,0.00015899,2]
[408822987,1774307433498,-500.0,0.00015899,2]
[408822988,1774307433507,-500.0,0.00015899,2]
[408822989,1774307433517,-500.0,0.00015899,2]
[408822990,1774307433526,-500.0,0.00015899,2]
[408822991,1774307433536,-500.0,0.00015899,2]
[408822992,1774307433547,-500.0,0.00015899,2]
[408822993,1774307433556,-500.0,0.00015899,2]
[408822994,1774307433566,-500.0,0.00015899,2]
[408822995,1774307433575,-500.0,0.00015899,2]
[408822996,1774307433585,-500.0,0.00015899,2]
[408822997,1774307433594,-500.0,0.00015899,2]
[408822998,1774307433604,-500.0,0.00015899,2]
[408822999,1774307433614,-500.0,0.00015899,2]
[408823000,1774307433624,-500.0,0.00015899,2]
[408823001,1774307433633,-500.0,0.00015899,2]
[408823002,1774307433647,-500.0,0.00015899,2]
[408823003,1774307433656,-500.0,0.00015899,2]
[408823004,1774307433666,-500.0,0.00015899,2]
[408823005,1774307433675,-500.0,0.00015899,2]
[408823006,1774307433684,-500.0,0.00015899,2]
[408823007,1774307433693,-263.73417376,0.00015899,2]
[408823008,1774307433703,-501.58960079,0.00015899,2]
[408823009,1774307433712,-500.0,0.00015899,2]
[408823010,1774307433721,-500.0,0.00015899,2]
[408823011,1774307433731,-500.0,0.00015899,2]
[408823012,1774307433742,-330.39309316,0.00015899,2]
[408823013,1774307433754,-206.60829715,0.00015899,2]
[408823014,1774307433763,-500.0,0.00015899,2]
[408823015,1774307433773,-500.0,0.00015899,2]
[408823016,1774307433782,-500.0,0.00015899,2]
[408823017,1774307433792,-255.86120147,0.00015899,2]
[408823018,1774307433802,-500.0,0.00015899,2]
[408823019,1774307433813,-500.0,0.00015899,2]
[408823020,1774307433823,-370.45763361,0.00015899,2]
[408823021,1774307433832,-500.0,0.00015899,2]
[408823022,1774307433842,-500.0,0.00015899,2]
[408823023,1774307433852,-521.47089513,0.00015899,2]
[408823024,1774307433861,-500.0,0.00015899,2]
[408823025,1774307433870,-500.0,0.00015899,2]
[408823026,1774307433879,-500.0,0.00015899,2]
[408823027,1774307433888,-500.0,0.00015899,2]
[408823028,1774307433898,-500.0,0.00015899,11]
[408823029,1774307433907,-2911.0,0.000159,5]
[408823030,1774307433916,-23816.36793772,0.000159,2]
[408823031,1774307433929,-92357.9232439,0.000159,2]
[408823032,1774307433941,-29197.52812535,0.000159,2]
[408823033,1774307433952,-1717.03856977,0.000159,2]
[408823034,1774307433971,-275.31112814,0.000159,2]
[408823035,1774307433994,-5575.72344588,0.000159,2]
[408823036,1774307434005,-981.47839901,0.000159,2]
[408823037,1774307434030,-685.86632813,0.000159,2]
[408823038,1774307434041,-971.72153587,0.000159,2]
[408823039,1774307434052,-90581.30910342,0.000159,2]
[408823041,1774307438151,-20310.0,0.000159,2]
[408823042,1774307438212,-1080.50020015,0.000159,2]
[408823043,1774307438224,-334.615,0.000159,2]
[408823044,1774307438276,-9891.57037895,0.000159,2]
[408823045,1774307438293,-3999.99999999,0.000159,2]
[408823046,1774307438313,-718853.74675617,0.000159,2]
[408823047,1774307438337,-713.71647197,0.000159,2]
[408823061,1774307438599,-630.25502789,0.000159,2]
[408823062,1774307438672,-1389.5563097,0.000159,2]
[408823063,1774307438683,-519.57820263,0.000159,2]
[408823064,1774307438694,-543.7745298,0.000159,2]
[408823067,1774307440375,-3565.18647994,0.000159,2]
[408823068,1774307440815,-380.30947352,0.000159,2]
[408823084,1774307444931,-161.64308156,0.000158,2]
[408823085,1774307444941,-128.35691844,0.000159,2]
[408823086,1774307444954,-755.93087107,0.000159,2]
[408823087,1774307445117,-6193.52021139,0.000159,2]
[408823095,1774307446251,-9808.16646871,0.000159,2]
[408823096,1774307446320,-8268.20077145,0.000159,2]
[408823097,1774307446333,-800.0,0.000159,2]
[408823098,1774307446438,-1270.99962913,0.000159,2]
[408823100,1774308047045,337.96,7.44e-05,2]
[408823101,1774308047238,337.96,7.831e-05,2]
[408823102,1774308047445,337.96,8.223e-05,2]
[408823103,1774308047643,337.96,8.614e-05,2]
[408823104,1774308047864,337.96,9.006e-05,2]
[408823105,1774308048285,337.96,9.397e-05,2]
[408823106,1774308319250,804.8,0.00017,60]
[408823110,1774308561116,-337.96,9.789e-05,2]
[408823111,1774308561138,-337.96,0.0001018,2]
[408823112,1774308561159,-337.96,0.00010572,2]
[408823113,1774308561180,-400.0,0.00010572,4]
[408823114,1774308561201,-337.96,0.00010964,2]
[408823115,1774308561221,-337.96,0.00011355,2]
[408823116,1774308561243,-337.96,0.00011747,2]
[408823117,1774308561264,-337.96,0.00012138,2]
[408823118,1774308561284,-1126.94,0.00012371,2]
[408823119,1774308561305,-337.96,0.0001253,2]
[408823120,1774308561325,-150.0,0.000129,2]
[408823121,1774308561346,-337.96,0.00012921,2]
[408823122,1774308561370,-36.727508,0.00013248,2]
[408823132,1774308632719,-135.272492,0.00013248,2]
[408823133,1774308632728,-337.96,0.00013313,2]
[408823134,1774308632739,-203.37098314,0.00013705,2]
[408823135,1774308632753,-134.58901686,0.00013705,2]
[408823136,1774308632763,-378.78,0.00014,2]
[408823137,1774308632775,-200.0,0.00014067,2]
[408823138,1774308632787,-322.33,0.00014086,2]
[408823139,1774308632803,-337.96,0.00014096,2]
[408823140,1774308632815,-150.0,0.000142,2]
[408823141,1774308632825,-749.98,0.00014206,2]
[408823142,1774308632835,-3240.0,0.00014248,2]
[408823143,1774308632847,-337.96,0.00014488,2]
[408823144,1774308632858,-2500.0,0.00014573,2]
[408823145,1774308632869,-2500.0,0.00014573,2]
[408823146,1774308632880,-322.33,0.0001479,2]
[408823147,1774308632891,-337.96,0.00014879,2]
[408823148,1774308632901,-2233.21,0.00014957,2]
[408823149,1774308632910,-500.0,0.0001497,2]
[408823150,1774308632920,-158.15,0.00014984,2]
[408823151,1774308632929,-200.0,0.00014992,2]
[408823152,1774308632939,-166.69,0.00015055,2]
[408823153,1774308632949,-167.47929119,0.00015073,2]
[408823154,1774308632959,-500.0,0.00015073,2]
[408823155,1774308632968,-500.0,0.00015073,2]
[408823156,1774308632978,-500.0,0.00015073,2]
[408823157,1774308632988,-500.0,0.00015073,2]
[408823158,1774308632998,-500.0,0.00015073,2]
[408823159,1774308633007,-500.0,0.00015073,2]
[408823160,1774308633017,-300.0,0.00015079,2]
[408823161,1774308633027,-49302.2519,0.0001508,2]
[408823162,1774308633036,-164.79,0.0001508,2]
[408823163,1774308633046,-5553.02360164,0.00015105,2]
[408823164,1774308633056,-500.0,0.00015174,2]
[408823165,1774308633065,-197.1555,0.000154,2]
[408823166,1774308633075,-350.0,0.00015462,2]
[408823167,1774308633085,-322.33,0.00015494,2]
[408823168,1774308633095,-1100.0,0.000155,5]
[408823169,1774308633105,-500.0,0.00015526,5]
[408823170,1774308633116,-500.0,0.00015526,5]
[408823171,1774308633127,-500.0,0.00015526,5]
[408823172,1774308633138,-500.0,0.00015526,5]
[408823173,1774308633149,-500.0,0.00015526,2]
[408823174,1774308633159,-500.0,0.00015526,2]
[408823175,1774308633169,-500.0,0.00015526,2]
[408823176,1774308633180,-500.0,0.00015526,2]
[408823177,1774308633191,-500.0,0.00015526,2]
[408823178,1774308633202,-500.0,0.00015526,2]
[408823179,1774308633212,-500.0,0.00015526,2]
[408823180,1774308633222,-500.0,0.00015526,2]
[408823181,1774308633233,-500.0,0.00015526,2]
[408823182,1774308633242,-484.98041623,0.00015526,2]
[408823183,1774308633252,-443.2,0.00015599,2]
[408823184,1774308633262,-2200.0,0.000156,5]
[408823185,1774308633271,-300.0,0.000156,5]
[408823186,1774308633282,-700.0,0.00015626,2]
[408823187,1774308633291,-150.0,0.00015699,2]
[408823188,1774308633301,-151.70602932,0.00015699,2]
[408823189,1774308633311,-3300.0,0.000157,5]
[408823190,1774308633322,-600.0,0.000157,5]
[408823191,1774308633332,-2000.0,0.000157,2]
[408823192,1774308633346,-3532.0,0.000157,2]
[408823193,1774308633356,-6820.0283618,0.00015749,2]
[408823194,1774308633366,-390.48193632,0.000158,2]
[408823195,1774308633375,-4400.0,0.000158,5]
[408823196,1774308633385,-900.0,0.000158,5]
[408823197,1774308633395,-159.94773,0.0001584,2]
[408823198,1774308633405,-159.94774,0.0001584,2]
[408823199,1774308633414,-500.0,0.00015873,2]
[408823200,1774308633424,-500.0,0.00015873,2]
[408823201,1774308633434,-500.0,0.00015873,2]
[408823202,1774308633443,-500.0,0.00015873,2]
[408823203,1774308633453,-500.0,0.00015873,2]
[408823204,1774308633463,-500.0,0.00015873,2]
[408823205,1774308633472,-500.0,0.00015873,2]
[408823206,1774308633482,-500.0,0.00015873,2]
[408823207,1774308633492,-342.7582775,0.00015896,2]
[408823208,1774308633501,-281.74060238,0.00015899,2]
[408823209,1774308634225,-218.25939762,0.00015899,2]
[408823210,1774308634236,-500.0,0.00015899,2]
[408823211,1774308634246,-500.0,0.00015899,2]
[408823212,1774308634256,-500.0,0.00015899,2]
[408823213,1774308634265,-281.74060238,0.00015899,2]
[408823214,1774308634276,-218.25939762,0.00015899,2]
[408823215,1774308634286,-477.66747515,0.00015899,2]
[408823216,1774308634317,-22.33252485,0.00015899,2]
[408823217,1774308634330,-500.0,0.00015899,2]
[408823218,1774308634341,-365.43917574,0.00015899,2]
[408823219,1774308638425,-134.56082426,0.00015899,2]
[408823220,1774308638435,-500.0,0.00015899,2]
[408823221,1774308638444,-500.0,0.00015899,2]
[408823222,1774308638454,-500.0,0.00015899,2]
[408823223,1774308638463,-500.0,0.00015899,3]
[408823224,1774308638473,-500.0,0.00015899,4]
[408823225,1774308638482,-500.0,0.00015899,5]
[408823226,1774308638491,-500.0,0.00015899,6]
[408823227,1774308638500,-500.0,0.00015899,7]
[408823228,1774308638510,-500.0,0.00015899,8]
[408823229,1774308638518,-500.0,0.00015899,9]
[408823230,1774308638527,-239.60629207,0.00015899,10]
[408823312,1774308640835,-150.0,0.000158,2]
[408823313,1774308640846,-500.0,0.00015899,2]
[408823314,1774308640855,-500.0,0.00015899,2]
[408823315,1774308640865,-500.0,0.00015899,2]
[408823316,1774308640874,-500.0,0.00015899,2]
[408823317,1774308640884,-500.0,0.00015899,2]
[408823318,1774308640893,-500.0,0.00015899,2]
[408823319,1774308640903,-437.25344445,0.00015899,2]
[408823320,1774308640912,-345.32,0.00015899,2]
[408823321,1774308640921,-500.0,0.00015899,2]
[408823322,1774308640931,-53.80552969,0.00015899,2]
[408823323,1774308640946,-446.19447031,0.00015899,2]
[408823324,1774308640955,-500.0,0.00015899,2]
[408823325,1774308640964,-500.0,0.00015899,2]
[408823326,1774308640974,-500.0,0.00015899,2]
[408823327,1774308640983,-500.0,0.00015899,2]
[408823328,1774308640993,-500.0,0.00015899,2]
[408823329,1774308641002,-500.0,0.00015899,2]
[408823330,1774308641011,-500.0,0.00015899,2]
[408823331,1774308641020,-500.0,0.00015899,2]
[408823332,1774308641030,-500.0,0.00015899,2]
[408823333,1774308641039,-500.0,0.00015899,2]
[408823334,1774308641048,-500.0,0.00015899,2]
[408823335,1774308641058,-500.0,0.00015899,2]
[408823336,1774308641068,-500.0,0.00015899,2]
[408823337,1774308641078,-308.94072179,0.00015899,2]
[408823338,1774308641087,-500.0,0.00015899,2]
[408823339,1774308641096,-500.0,0.00015899,2]
[408823340,1774308641105,-500.0,0.00015899,2]
[408823341,1774308641115,-500.0,0.00015899,2]
[408823342,1774308641124,-500.0,0.00015899,2]
[408823343,1774308641134,-500.0,0.00015899,2]
[408823344,1774308641143,-500.0,0.00015899,2]
[408823345,1774308641152,-500.0,0.00015899,2]
[408823346,1774308641161,-500.0,0.00015899,2]
[408823347,1774308641171,-643.43119281,0.00015899,2]
[408823348,1774308641180,-2330.0,0.000159,5]
[408823349,1774308641189,-93016.2848641,0.000159,2]
[408823350,1774308641198,-166.8005527,0.000159,2]
[408823351,1774308641207,-200.0,0.000159,2]
[408823352,1774308641217,-5500.0,0.000159,5]
[408823353,1774308641226,-1200.0,0.000159,5]
[408823354,1774308641235,-26188.34819829,0.000159,2]
[408823357,1774308643622,-500.0,0.00015899,2]
[408823358,1774308643631,-147.90386869,0.00015899,3]
[408823366,1774308646514,-352.09613131,0.00015899,3]
[408823367,1774308646525,-301.64645628,0.00015899,4]
[408823368,1774308646534,-10390.05731241,0.000159,2]
[408823389,1774309617132,-253.63472759,0.00013955,3]
[408823405,1774309831801,-249.06842836,0.00013955,3]
[408823407,1774309831812,-253.46543089,0.00014,2]
[408823411,1774309831836,-258.53456911,0.00014,2]
[408823414,1774309831846,-1600.0,0.00014407,2]
[408823417,1774309831855,-166.66,0.00014464,2]
[408823419,1774309831864,-600.0,0.00014549,2]
[408823421,1774309831873,-151.0,0.00014634,2]
[408823423,1774309831882,-151.0,0.00014634,2]
[408823426,1774309831891,-700.0,0.000147,5]
[408823429,1774309831900,-166.66,0.00014769,2]
[408823431,1774309831910,-300.0,0.00014799,2]
[408823434,1774309831919,-1200.0,0.00014799,2]
[408823436,1774309831928,-619.81666593,0.000148,2]
[408823438,1774309831937,-678.58437851,0.000148,2]
[408823440,1774309831946,-697.43955868,0.000148,2]
[408823442,1774309831955,-330.9762848,0.000148,2]
[408823444,1774309831964,-1400.0,0.000148,5]
[408823446,1774309831974,-34969.11177162,0.00014873,2]
[408823455,1774309837575,-225481.3024045,0.00014873,2]
[408823456,1774309837586,-469268.38452388,0.00014873,2]
[408823457,1774309837595,-802.1618,0.0001488,2]
[408823458,1774309837604,-2100.0,0.000149,5]
[408823459,1774309837613,-16349.41,0.00014903,2]
[408823460,1774309837623,-2000.0,0.00014903,2]
[408823461,1774309837632,-208.6059517,0.0001497,2]
[408823462,1774309837643,-385.25639426,0.00014971,2]
[408823463,1774309837652,-150.0,0.00014972,2]
[408823464,1774309837661,-500.0,0.00014973,2]
[408823465,1774309837671,-500.0,0.00014973,2]
[408823466,1774309837680,-500.13305113,0.00014973,2]
[408823467,1774309837689,-574.78011138,0.00014973,2]
[408823468,1774309837698,-1116.596,0.00014976,2]
[408823469,1774309837707,-177.762,0.00014976,2]
[408823470,1774309837716,-276.25,0.00014979,2]
[408823471,1774309837726,-500.0,0.00014979,2]
[408823472,1774309837735,-500.0,0.00014979,2]
[408823473,1774309837744,-500.0,0.00014979,2]
[408823474,1774309837753,-500.0,0.00014979,2]
[408823475,1774309837762,-500.0,0.00014979,2]
[408823476,1774309837772,-500.0,0.00014979,2]
[408823477,1774309837785,-500.0,0.00014979,2]
[408823478,1774309837795,-500.0,0.00014979,2]
[408823480,1774309837804,-500.0,0.00014979,2]
[408823482,1774309837813,-500.0,0.00014979,2]
[408823484,1774309837822,-500.0,0.00014979,2]
[408823486,1774309837831,-500.0,0.00014979,2]
[408823489,1774309837841,-500.0,0.00014979,2]
[408823492,1774309837850,-500.0,0.00014979,2]
[408823494,1774309837860,-237.27275546,0.00014979,2]
[408823496,1774309837869,-500.0,0.00014979,2]
[408823498,1774309837878,-346.78498697,0.00014979,2]
[408823500,1774309837887,-500.0,0.00014979,2]
[408823502,1774309837897,-500.36769472,0.00014979,2]
[408823504,1774309837906,-500.0,0.00014979,2]
[408823506,1774309837915,-500.0,0.00014979,2]
[408823508,1774309837924,-513.33696882,0.00014979,2]
[408823510,1774309837933,-166.66,0.00015074,2]
[408823512,1774309837942,-202.4384792,0.00015085,2]
[408823514,1774309837951,-150.0,0.00015148,2]
[408823516,1774309837960,-341.0,0.00015182,2]
[408823518,1774309837969,-276.25,0.00015253,2]
[408823520,1774309837979,-300.0,0.00015351,2]
[408823522,1774309837988,-166.66,0.00015378,2]
[408823524,1774309837997,-2053.47015405,0.00015488,2]
[408823526,1774309838007,-4000.0,0.00015507,2]
[408823528,1774309838016,-474.43830873,0.00015521,2]
[408823530,1774309838026,-276.25,0.00015527,2]
[408823532,1774309838034,-2053.47015405,0.00015591,2]
[408823534,1774309838044,-700.0,0.00015615,2]
[408823536,1774309838053,-1500.0,0.0001568,2]
[408823538,1774309838063,-1500.0,0.0001568,2]
[408823540,1774309838072,-2594.172265,0.0001568,2]
[408823542,1774309838082,-166.66,0.00015683,2]
[408823544,1774309838091,-2053.47015405,0.00015694,2]
[408823546,1774309838100,-450.0,0.00015751,2]
[408823548,1774309838110,-2053.47015405,0.00015797,2]
[408823550,1774309838119,-2800.0,0.000158,5]
[408823552,1774309838129,-276.25,0.00015801,2]
[408823554,1774309838139,-2033.0,0.00015833,5]